bitfinex/quotes_SOLUSD_20240824
["timestamp","ask_amount","ask_price","bid_price","bid_amount"]
[1724476434601,26.4741,154.46,154.38,42.39437727]
[1724476434917,3.9222584,154.45,154.38,42.39437727]
[1724476435123,3.9222584,154.44,154.38,42.39437727]
[1724476435323,3.9222584,154.43,154.38,42.39437727]
[1724476435624,3.9222584,154.42,154.38,16.5698]
[1724476435804,3.9222584,154.41,154.38,16.5698]
[1724476435997,3.9222584,154.4,154.38,16.5698]
[1724476436200,8.09377551,154.45,154.38,16.5698]
[1724476436404,3.92256592,154.44,154.38,16.5698]
[1724476436621,5.54179197,154.43,154.38,16.5698]
[1724476436816,3.92256592,154.42,154.38,16.5698]
[1724476437023,5.54177456,154.41,154.38,16.5698]
[1724476437223,3.92256592,154.4,154.38,16.5698]
[1724476437525,1.61923394,154.44,154.38,16.5698]
[1724476437719,3.92264804,154.43,154.38,16.5698]
[1724476437904,5.54186894,154.42,154.38,16.5698]
[1724476438104,3.92264804,154.41,154.38,16.5698]
[1724476438324,3.92264804,154.4,154.38,16.5698]
[1724476438526,1.61922494,154.44,154.38,16.5698]
[1724476438823,3.92262857,154.43,154.38,16.5698]
[1724476439123,5.54183134,154.42,154.38,16.5698]
[1724476439323,3.92260617,154.41,154.38,16.5698]
[1724476439723,3.92260617,154.4,154.38,16.5698]
[1724476439924,1.61920042,154.44,154.38,16.5698]
[1724476440229,3.9226057,154.43,154.38,16.5698]
[1724476440422,5.54180579,154.42,154.38,16.5698]
[1724476440628,3.9226057,154.41,154.38,16.5698]
[1724476440829,3.9226057,154.4,154.38,16.5698]
[1724476441029,1.61919895,154.44,154.38,16.5698]
[1724476441245,3.92260757,154.43,154.38,16.5698]
[1724476441443,5.54180612,154.42,154.38,16.5698]
[1724476441646,3.92260617,154.42,154.38,16.5698]
[1724476441937,3.92262764,154.41,154.38,16.5698]
[1724476442132,3.92262764,154.4,154.38,16.5698]
[1724476442339,3.92262764,154.39,154.38,16.5698]
[1724476444920,1.61934143,154.42,154.38,16.5698]
[1724476445113,3.9228396,154.41,154.38,16.5698]
[1724476445642,3.9228396,154.4,154.38,16.5698]
[1724476445828,3.9228396,154.39,154.38,16.5698]
[1724476448340,6.475,154.44,154.38,16.5698]
[1724476448554,0.12549,154.43,154.38,16.5698]
[1724476448759,3.92267125,154.42,154.38,16.5698]
[1724476448923,3.92267125,154.41,154.38,16.5698]
[1724476449255,0.12549,154.43,154.38,16.5698]
[1724476449256,3.92267125,154.4,154.38,16.5698]
[1724476449456,3.92267125,154.39,154.38,16.5698]
[1724476450142,6.475,154.44,154.38,16.5698]
[1724476450316,3.92250092,154.43,154.38,16.5698]
[1724476450616,3.92250092,154.42,154.38,16.5698]
[1724476450817,3.92250092,154.41,154.38,16.5698]
[1724476451018,3.92250092,154.4,154.38,16.5698]
[1724476451228,6.475,154.44,154.38,16.5698]
[1724476451547,3.92247999,154.43,154.38,16.5698]
[1724476451732,6.475,154.44,154.38,16.5698]
[1724476451924,3.92248046,154.42,154.38,16.5698]
[1724476452124,3.92248046,154.43,154.38,16.5698]
[1724476452325,3.92248046,154.42,154.38,16.5698]
[1724476452626,3.92248046,154.41,154.38,16.5698]
[1724476452834,3.92248046,154.4,154.38,16.5698]
[1724476453047,3.92248046,154.39,154.38,16.5698]
[1724476455254,3.92271311,154.39,154.38,16.5698]
[1724476456652,3.92271311,154.39,154.37,6.0299]
[1724476456846,3.92271311,154.38,154.37,6.0299]
[1724476457947,5.54206341,154.42,154.37,6.0299]
[1724476458153,1.6193503,154.42,154.37,6.0299]
[1724476458331,3.92277432,154.41,154.37,6.0299]
[1724476458531,3.92277432,154.4,154.37,6.0299]
[1724476458733,3.92277432,154.39,154.37,6.0299]
[1724476459035,1.6193503,154.42,154.37,6.0299]
[1724476459328,3.92279672,154.41,154.37,6.0299]
[1724476459556,3.92279672,154.4,154.37,6.0299]
[1724476459852,3.92279672,154.39,154.37,6.0299]
[1724476460034,1.6193503,154.42,154.37,6.0299]
[1724476460237,3.92277572,154.41,154.37,6.0299]
[1724476460539,3.92277572,154.4,154.37,6.0299]
[1724476460741,3.92277572,154.39,154.37,6.0299]
[1724476460945,3.92277572,154.38,154.37,6.0299]
[1724476462368,1.61934184,154.42,154.37,6.0299]
[1724476462537,3.92277619,154.38,154.37,6.0299]
[1724476462857,1.61934184,154.42,154.37,6.0299]
[1724476475069,6.475,154.44,154.37,6.0299]
[1724476475362,6.475,154.44,154.37,6.38563544]
[1724476476263,13.35152508,154.45,154.37,6.38563544]
[1724476476475,20.12549,154.44,154.37,6.38563544]
[1724476478666,26.60049,154.44,154.37,6.38563544]
[1724476482867,20.12549,154.44,154.37,6.38563544]
[1724476484166,20.0,154.44,154.37,6.38563544]
[1724476490571,20.0,154.44,154.37,6.38563544]
[1724476493071,6.75143508,154.45,154.39,16.0911]
[1724476493268,6.75143508,154.45,154.4,0.35511866]
[1724476493768,18.42510226,154.5,154.4,0.35511866]
[1724476493968,25.17823193,154.5,154.4,26.17969593]
[1724476494162,35.92410644,154.5,154.42,32.36397727]
[1724476494369,13.22592967,154.5,154.43,0.35433995]
[1724476494764,6.75312967,154.5,154.44,41.91567727]
[1724476494972,6.75312967,154.5,154.45,0.35406549]
[1724476495157,38.92007677,154.55,154.45,0.35406549]
[1724476495369,6.75077938,154.54,154.46,25.82457727]
[1724476495669,6.75077938,154.54,154.48,25.82457727]
[1724476495968,6.4703,154.56,154.48,32.36397727]
[1724476497151,6.59589,154.55,154.48,32.36397727]
[1724476499249,1.61810588,154.54,154.48,6.5394]
[1724476500461,6.59589,154.55,154.48,6.5394]
[1724476500849,6.4716,154.53,154.48,6.5394]
[1724476501052,6.4708,154.54,154.48,6.5394]
[1724476501464,8.21401841,154.55,154.48,6.5394]
[1724476503664,1.74361841,154.55,154.48,6.5394]
[1724476503954,6.4708,154.54,154.48,6.5394]
[1724476504159,1.61822932,154.53,154.48,6.5394]
[1724476504364,1.61822932,154.53,154.44,41.91567727]
[1724476504365,1.61822932,154.53,154.44,48.33097727]
[1724476504564,0.12549,154.52,154.45,20.0]
[1724476504772,1.74385853,154.52,154.45,20.0]
[1724476509172,1.74385853,154.52,154.44,48.33097727]
[1724476509768,20.0,154.55,154.46,25.82457727]
[1724476509976,20.0,154.55,154.48,25.82457727]
[1724476510274,25.82457727,154.6,154.48,25.82457727]
[1724476510275,6.74846942,154.56,154.5,15.7085]
[1724476510676,20.0,154.55,154.5,15.7085]
[1724476512779,6.74846942,154.56,154.5,15.7085]
[1724476512989,6.4692,154.58,154.51,0.35240815]
[1724476514167,20.0,154.57,154.51,0.35240815]
[1724476515089,20.0,154.57,154.5,41.53307727]
[1724476515676,20.0,154.57,154.51,0.35238609]
[1724476516064,6.4692,154.58,154.51,0.35238609]
[1724476517065,6.4692,154.58,154.5,41.53307727]
[1724476517285,1.61772506,154.57,154.5,41.53307727]
[1724476518395,6.4692,154.58,154.5,41.53307727]
[1724476518689,6.4692,154.58,154.51,0.35230972]
[1724476519773,6.4687,154.59,154.51,0.35230972]
[1724476519968,6.74714834,154.6,154.52,25.82457727]
[1724476520172,6.74714834,154.6,154.53,0.3517185]
[1724476520985,13.21544834,154.6,154.53,0.3517185]
[1724476521671,6.4683,154.6,154.53,0.3517185]
[1724476522288,6.4683,154.6,154.54,22.2992]
[1724476522471,6.4683,154.6,154.55,0.35154914]
[1724476524693,6.74629364,154.62,154.55,0.35143799]
[1724476524989,6.4671,154.63,154.55,0.35143799]
[1724476526701,7.56353502,154.64,154.56,25.82457727]
[1724476526912,7.56353502,154.64,154.57,20.35045499]
[1724476526913,0.8228322,154.64,154.57,20.35045499]
[1724476527090,0.8228322,154.64,154.59,22.2992]
[1724476527283,0.8228322,154.64,154.6,0.35002639]
[1724476531378,0.8228322,154.64,154.6,26.17460366]
[1724476531578,0.8228322,154.64,154.61,0.34963367]
[1724476531795,0.8228322,154.64,154.62,25.82457727]
[1724476531975,0.8228322,154.64,154.63,0.34946458]
[1724476533401,0.8228322,154.64,154.63,36.34946458]
[1724476533609,0.8228322,154.64,154.63,36.0]
[1724476533900,0.8228322,154.64,154.63,16.0]
[1724476534301,0.8228322,154.64,154.63,16.34926663]
[1724476534601,0.8228322,154.64,154.63,16.0]
[1724476535008,0.8228322,154.64,154.63,16.34912232]
[1724476539797,0.8228322,154.64,154.63,81.34912232]
[1724476540523,0.8228322,154.64,154.63,87.77381232]
[1724476542719,0.8228322,154.64,154.63,87.89930232]
[1724476543400,20.0,154.73,154.63,87.89930232]
[1724476543401,26.4629,154.73,154.63,87.89930232]
[1724476543595,26.4629,154.73,154.64,65.25098]
[1724476543816,26.4629,154.73,154.65,26.17278219]
[1724476544117,20.0,154.73,154.66,45.47369492]
[1724476544325,6.4624,154.74,154.66,45.47369492]
[1724476544618,20.0,154.73,154.66,45.47369492]
[1724476544798,26.4629,154.73,154.65,25.82457727]
[1724476544993,20.0,154.73,154.66,45.12549]
[1724476545695,20.0,154.73,154.67,0.34785535]
[1724476546219,20.0,154.73,154.67,0.34786216]
[1724476546417,6.4625,154.74,154.67,0.34786216]
[1724476547501,6.4616,154.76,154.68,16.5623]
[1724476547706,6.4616,154.76,154.69,45.34735323]
[1724476548108,6.4616,154.76,154.69,45.0]
[1724476549201,6.74821965,154.77,154.69,45.0]
[1724476549202,6.74821965,154.77,154.7,46.17179004]
[1724476549530,7.3829322,154.8,154.72,25.82457727]
[1724476549715,6.4606,154.79,154.73,0.34632289]
[1724476549901,6.4606,154.79,154.73,45.34632289]
[1724476550244,6.4607,154.78,154.74,0.34640271]
[1724476550404,6.4607,154.78,154.73,45.0]
[1724476550719,0.9228322,154.8,154.7,20.0]
[1724476550720,26.74740947,154.8,154.7,20.0]
[1724476551023,0.9228322,154.8,154.71,45.12549]
[1724476551203,0.9228322,154.8,154.72,0.12549]
[1724476551602,0.9228322,154.8,154.72,0.25098]
[1724476552014,6.4608,154.78,154.72,0.25098]
[1724476552306,6.4608,154.78,154.72,0.59725925]
[1724476552923,7.3831322,154.8,154.72,26.42183652]
[1724476553104,6.4604,154.79,154.74,16.5623]
[1724476553303,6.4604,154.79,154.75,45.345985]
[1724476555533,6.4604,154.79,154.75,45.0]
[1724476556958,6.4607,154.78,154.75,45.0]
[1724476557140,6.4612,154.77,154.75,45.0]
[1724476557456,0.9228322,154.8,154.75,45.0]
[1724476558340,6.4608,154.78,154.75,45.0]
[1724476560845,7.3831322,154.8,154.75,45.0]
[1724476561046,6.4605,154.79,154.75,45.0]
[1724476561220,6.4605,154.79,154.76,0.34598657]
[1724476562541,6.4605,154.79,154.75,45.0]
[1724476565341,6.4608,154.78,154.75,45.0]
[1724476573441,6.4604,154.79,154.75,45.0]
[1724476574458,0.9228322,154.8,154.75,45.0]
[1724476574643,6.4607,154.78,154.75,45.0]
[1724476576459,6.4607,154.78,154.72,0.25098]
[1724476576760,2.53794876,154.8,154.7,62.38687727]
[1724476576971,20.9228322,154.8,154.7,42.38687727]
[1724476578257,6.4608,154.78,154.71,45.25098]
[1724476579074,6.4612,154.77,154.71,45.25098]
[1724476580161,6.4608,154.78,154.71,45.25098]
[1724476580541,0.9228322,154.8,154.72,26.17087893]
[1724476580760,0.9228322,154.8,154.73,45.25098]
[1724476581063,6.4605,154.79,154.74,0.34603586]
[1724476583254,0.9228322,154.8,154.73,45.25098]
[1724476583458,6.4608,154.78,154.73,45.25098]
[1724476583964,6.4603,154.79,154.73,45.25098]
[1724476585761,6.4603,154.79,154.73,45.12549]
[1724476586969,6.4607,154.78,154.73,45.12549]
[1724476587156,6.4607,154.78,154.73,45.0]
[1724476588168,26.74740947,154.8,154.73,45.0]
[1724476588367,28.36265997,154.8,154.73,45.0]
[1724476588753,1.61526192,154.79,154.73,45.0]
[1724476590257,6.4613,154.77,154.73,45.0]
[1724476591689,6.4616,154.76,154.7,16.5623]
[1724476591862,6.4616,154.76,154.71,45.0]
[1724476592067,6.4616,154.76,154.7,16.5623]
[1724476592261,6.462,154.75,154.7,16.5623]
[1724476592971,1.61549655,154.77,154.7,16.5623]
[1724476593149,6.4624,154.74,154.7,16.5623]
[1724476593849,1.61549655,154.77,154.7,16.5623]
[1724476593850,6.4612,154.77,154.7,16.5623]
[1724476594558,6.4612,154.77,154.71,0.12549]
[1724476594763,6.4612,154.77,154.71,45.12549]
[1724476596755,6.4616,154.76,154.71,45.0]
[1724476596957,6.4612,154.77,154.72,0.34691413]
[1724476600658,6.7557853,154.79,154.72,0.34691413]
[1724476600659,6.4616,154.76,154.72,0.34691413]
[1724476600859,6.4616,154.76,154.71,45.0]
[1724476601267,6.462,154.75,154.7,16.5623]
[1724476601471,25.82457727,154.78,154.7,16.5623]
[1724476602165,6.4616,154.76,154.7,16.5623]
[1724476602979,6.4621,154.75,154.7,16.5623]
[1724476603364,6.4625,154.74,154.7,16.5623]
[1724476604174,6.4625,154.74,154.69,6.6506]
[1724476604383,6.4625,154.74,154.66,16.3048]
[1724476604567,6.4629,154.73,154.66,16.3048]
[1724476605567,25.82457727,154.76,154.66,16.3048]
[1724476606082,6.4625,154.74,154.67,0.34769382]
[1724476606474,6.4621,154.75,154.67,0.34769382]
[1724476606682,6.4621,154.75,154.68,25.95006727]
[1724476606883,6.4615,154.77,154.69,45.34721911]
[1724476607174,15.2577,154.78,154.69,45.34721911]
[1724476607175,6.4617,154.76,154.69,45.34721911]
[1724476607383,29.40653567,154.79,154.69,45.34721911]
[1724476607575,6.4614,154.77,154.69,45.34721911]
[1724476607777,6.4614,154.77,154.71,22.8071]
[1724476607995,6.4614,154.77,154.72,0.34696159]
[1724476608170,6.7557853,154.79,154.72,45.34696159]
[1724476608495,0.9228322,154.8,154.72,45.34696159]
[1724476609277,6.4604,154.79,154.72,45.34696159]
[1724476610271,6.4608,154.78,154.72,45.34696159]
[1724476610790,6.4608,154.78,154.72,45.0]
[1724476612774,6.4613,154.77,154.72,45.0]
[1724476613072,6.4618,154.76,154.71,22.8071]
[1724476613277,1.61558466,154.77,154.67,22.8071]
[1724476613581,25.82457727,154.78,154.68,25.82457727]
[1724476613582,6.4616,154.76,154.68,25.82457727]
[1724476613785,6.4616,154.76,154.69,0.34730114]
[1724476614698,6.4616,154.76,154.69,45.34730114]
[1724476617301,6.462,154.75,154.69,45.34730114]
[1724476617806,6.4614,154.77,154.69,45.0]
[1724476618105,6.4614,154.77,154.7,0.12549]
[1724476620893,6.4616,154.76,154.69,45.0]
[1724476622600,6.4621,154.75,154.69,45.0]
[1724476622808,27.44003915,154.78,154.69,45.0]
[1724476623014,47.44003915,154.78,154.68,45.12549]
[1724476623227,6.462,154.75,154.68,45.12549]
[1724476623582,6.4617,154.76,154.68,45.12549]
[1724476626433,6.4617,154.76,154.69,0.34732168]
[1724476628016,29.40942794,154.79,154.7,25.82457727]
[1724476628239,13.21907757,154.79,154.72,16.4091]
[1724476628410,6.4603,154.79,154.73,45.34638105]
[1724476633730,7.3830322,154.8,154.73,45.34638105]
[1724476634030,20.0,154.79,154.73,45.34638105]
[1724476634211,26.4603,154.79,154.73,45.34638105]
[1724476635026,20.0,154.79,154.73,45.0]
[1724476635341,20.9228322,154.8,154.73,45.0]
[1724476635511,1.61526125,154.79,154.73,45.0]
[1724476636017,8.07596125,154.79,154.73,45.0]
[1724476636209,6.4607,154.79,154.73,45.0]
[1724476637615,8.07596915,154.79,154.73,45.0]
[1724476638311,6.4607,154.79,154.73,45.0]
[1724476638535,6.4607,154.78,154.73,45.0]
[1724476639125,1.61530831,154.79,154.73,45.0]
[1724476639349,1.61530831,154.79,154.72,22.9951]
[1724476639512,6.75773872,154.78,154.72,22.9951]
[1724476639713,6.75773872,154.78,154.72,16.4091]
[1724476640338,13.21853872,154.78,154.72,16.4091]
[1724476643918,6.4608,154.78,154.72,16.4091]
[1724476644116,6.4608,154.78,154.73,0.34674444]
[1724476648017,6.4604,154.79,154.73,0.34674444]
[1724476648222,6.4604,154.79,154.73,45.34674444]
[1724476648449,6.4604,154.79,154.74,0.34641514]
[1724476651056,6.4604,154.79,154.73,45.0]
[1724476652944,8.07571553,154.79,154.73,45.0]
[1724476654359,20.9228322,154.8,154.73,45.0]
[1724476654360,22.53818812,154.8,154.73,45.0]
[1724476654530,28.99818812,154.8,154.73,45.0]
[1724476655060,6.4606,154.79,154.73,45.0]
[1724476655736,8.07595589,154.79,154.73,45.0]
[1724476655940,6.4607,154.78,154.73,45.0]
[1724476658329,8.07575589,154.79,154.73,45.0]
[1724476658759,6.4607,154.78,154.73,45.0]
[1724476663083,7.3829322,154.8,154.74,0.34665645]
[1724476664081,0.9228322,154.8,154.74,0.34665645]
[1724476664299,0.9228322,154.8,154.74,0.34662034]
[1724476665292,0.9228322,154.8,154.72,23.07]
[1724476665293,6.4604,154.79,154.72,23.07]
[1724476665584,34.82257226,154.8,154.72,23.07]
[1724476666671,34.82257226,154.8,154.73,45.0]
[1724476667890,6.4604,154.79,154.73,45.0]
[1724476671359,6.4604,154.79,154.72,16.4091]
[1724476672380,1.61539791,154.79,154.72,16.4091]
[1724476672569,1.61539791,154.79,154.68,47.83857727]
[1724476672570,6.4608,154.78,154.68,47.83857727]
[1724476672772,26.74740947,154.8,154.69,65.25098]
[1724476672987,20.0,154.79,154.69,65.25098]
[1724476674185,26.4605,154.79,154.69,65.25098]
[1724476674788,6.4608,154.78,154.69,65.25098]
[1724476676790,6.4613,154.77,154.69,65.25098]
[1724476677396,26.4607,154.79,154.69,65.25098]
[1724476679100,6.4608,154.78,154.69,65.25098]
[1724476679484,6.4613,154.77,154.69,65.25098]
[1724476679903,6.4613,154.77,154.7,0.34684457]
[1724476680606,6.4608,154.78,154.7,0.34684457]
[1724476681204,6.4608,154.78,154.71,0.25098]
[1724476681406,6.4608,154.78,154.71,45.25098]
[1724476681601,6.4608,154.78,154.71,45.12549]
[1724476682007,6.4608,154.78,154.71,45.0]
[1724476682590,6.4608,154.78,154.72,0.34667604]
[1724476684410,6.4608,154.78,154.71,45.0]
[1724476685606,21.61538719,154.79,154.71,45.0]
[1724476685812,6.4608,154.78,154.72,45.34705889]
[1724476686113,6.4614,154.77,154.69,20.0]
[1724476686297,6.4614,154.77,154.7,45.0]
[1724476686728,6.4614,154.77,154.71,0.34709683]
[1724476686929,13.21916376,154.78,154.71,0.34709683]
[1724476687223,6.4608,154.78,154.71,0.34709683]
[1724476687614,6.4608,154.78,154.71,0.3466897]
[1724476688321,7.3831322,154.8,154.7,70.82457727]
[1724476688517,26.4604,154.79,154.71,0.25098]
[1724476692133,26.4604,154.79,154.71,0.12549]
[1724476696026,0.9228322,154.8,154.71,0.47209209]
[1724476696027,7.3828322,154.8,154.71,0.47209209]
[1724476696327,7.3828322,154.8,154.72,0.12549]
[1724476696515,6.4605,154.79,154.72,0.12549]
[1724476699324,0.9228322,154.8,154.72,0.12549]
[1724476699541,20.9228322,154.8,154.72,0.12549]
[1724476700029,27.3830322,154.8,154.72,0.12549]
[1724476700234,28.998352,154.8,154.71,0.25098]
[1724476703017,6.4604,154.79,154.71,0.25098]
[1724476704233,8.07572055,154.79,154.71,0.25098]
[1724476704537,8.07572055,154.79,154.71,0.12549]
[1724476705818,8.73809895,154.79,154.71,0.12549]
[1724476706114,2.27769895,154.79,154.71,0.12549]
[1724476706320,0.6623784,154.79,154.71,0.12549]
[1724476706525,0.6623784,154.79,154.71,0.25098]
[1724476706840,7.1227784,154.79,154.71,0.25098]
[1724476709328,8.73811145,154.79,154.71,0.25098]
[1724476709529,8.73811145,154.79,154.71,0.12549]
[1724476710341,7.1227784,154.79,154.71,0.12549]
[1724476710545,13.88006839,154.79,154.71,0.12549]
[1724476710844,15.49543263,154.79,154.71,0.12549]
[1724476713242,6.4609,154.78,154.71,0.12549]
[1724476713445,15.49543263,154.79,154.71,0.12549]
[1724476716840,9.03503263,154.79,154.71,0.12549]
[1724476717144,9.03503263,154.79,154.7,70.82457727]
[1724476718318,15.49543263,154.79,154.7,70.82457727]
[1724476722229,13.88006839,154.79,154.71,20.34677799]
[1724476722436,13.88006839,154.79,154.72,45.0]
[1724476722643,13.88006839,154.79,154.73,0.34677806]
[1724476723748,0.6623784,154.79,154.73,0.34677806]
[1724476724438,0.6623784,154.79,154.73,6.6119]
[1724476724645,0.6623784,154.79,154.74,45.0]
[1724476728833,0.6623784,154.79,154.74,70.82457727]
[1724476729151,0.6623784,154.79,154.75,0.12549]
[1724476729352,0.6623784,154.79,154.73,32.43647727]
[1724476729526,0.6623784,154.79,154.74,20.0]
[1724476730657,0.6623784,154.79,154.75,45.12549]
[1724476733446,0.6623784,154.79,154.75,70.95006727]
[1724476734989,0.6623784,154.79,154.75,70.95006727]
[1724476737678,0.6623784,154.79,154.76,20.0]
[1724476737871,0.6623784,154.79,154.76,36.5918]
[1724476742973,0.6623784,154.79,154.77,25.82457727]
[1724476750595,6.75525877,154.86,154.78,52.7188011]
[1724476750802,16.6019,154.9,154.84,25.82457727]
[1724476750967,16.6019,154.9,154.86,25.82457727]
[1724476751295,6.75200354,154.92,154.88,25.82457727]
[1724476751594,6.4549,154.92,154.88,25.82457727]
[1724476751768,8.06899702,154.92,154.88,25.82457727]
[1724476751969,0.8403492,154.93,154.9,25.82457727]
[1724476752188,6.75141649,154.96,154.92,32.24747727]
[1724476752469,14.70416644,155.0,154.92,6.4229]
[1724476752686,14.70416644,155.0,154.93,65.0]
[1724476752891,13.09090914,155.0,154.94,0.34157095]
[1724476753083,13.09090914,155.0,154.94,26.16614822]
[1724476753389,13.09090914,155.0,154.96,25.82457727]
[1724476753598,13.09090914,155.0,154.97,0.34096389]
[1724476753772,13.09090914,155.0,154.97,45.0]
[1724476753970,13.09090914,155.0,154.98,25.82457727]
[1724476754164,13.09090914,155.0,154.99,45.0]
[1724476754365,0.37731625,155.06,154.99,65.25098]
[1724476754569,0.37731625,155.06,155.02,25.82457727]
[1724476754788,0.37731625,155.06,155.03,45.0]
[1724476755168,0.37731625,155.06,154.98,25.82457727]
[1724476755367,1.98991164,155.06,154.94,25.82457727]
[1724476755594,25.82457727,155.05,154.92,32.24747727]
[1724476755795,1.61310958,155.04,154.92,32.24747727]
[1724476756089,6.4525,154.98,154.87,6.4229]
[1724476756280,1.61353495,154.97,154.87,6.4229]
[1724476756690,1.61361615,154.98,154.88,25.82457727]
[1724476756880,6.74908306,155.02,154.94,25.82457727]
[1724476757083,12.7091,155.04,154.95,0.3407638]
[1724476757288,21.61291783,155.03,154.94,25.82457727]
[1724476757593,21.61291783,155.03,154.95,0.25098]
[1724476757791,21.61291783,155.03,154.95,45.25098]
[1724476758875,20.0,155.03,154.95,45.25098]
[1724476759195,16.97921625,155.06,154.96,0.34076215]
[1724476759394,0.37731625,155.06,154.97,22.006]
[1724476759582,0.37731625,155.06,154.98,45.25098]
[1724476760991,1.98983189,155.06,154.98,45.25098]
[1724476762096,0.37731625,155.06,154.98,45.25098]
[1724476762480,1.98990136,155.06,154.98,45.25098]
[1724476763396,1.98990136,155.06,154.98,45.0]
[1724476763576,27.81447863,155.06,154.98,45.0]
[1724476763886,34.26397863,155.06,154.98,45.0]
[1724476764294,33.76397863,155.06,154.98,45.0]
[1724476765577,7.93940136,155.06,154.98,45.0]
[1724476765990,6.4495,155.05,154.98,45.0]
[1724476766212,7.93952576,155.05,154.98,45.0]
[1724476767890,6.4499,155.04,154.93,6.2946]
[1724476768082,6.4499,155.04,154.94,65.25098]
[1724476768083,1.49018221,155.03,154.94,65.25098]
[1724476768400,25.82457727,155.06,154.95,0.46333236]
[1724476768603,22.8625492,155.08,154.96,26.07555727]
[1724476768604,1.61255096,155.07,154.96,26.07555727]
[1724476768805,21.61255096,155.07,154.97,65.0]
[1724476769101,26.4487,155.07,154.98,0.71355728]
[1724476769302,6.4487,155.07,154.99,0.46251375]
[1724476770390,6.4487,155.07,154.98,0.71353831]
[1724476771210,27.43712122,155.06,154.94,25.82457727]
[1724476771716,6.45,155.04,154.95,20.0]
[1724476771890,6.4504,155.03,154.93,6.2946]
[1724476772212,1.61281821,155.04,154.93,6.2946]
[1724476772213,1.61289924,155.02,154.93,6.2946]
[1724476772389,6.4512,155.01,154.93,6.2946]
[1724476772713,8.06344746,155.03,154.93,6.2946]
[1724476772910,25.82457727,155.04,154.94,25.82457727]
[1724476772911,6.4499,155.04,154.94,25.82457727]
[1724476773096,8.06271358,155.04,154.94,25.82457727]
[1724476773699,6.4503,155.03,154.95,65.25098]
[1724476774499,1.61281876,155.02,154.95,65.12549]
[1724476774697,6.4503,155.03,154.95,65.0]
[1724476775113,6.4503,155.03,154.96,0.58898771]
[1724476775498,22.8625492,155.08,154.96,26.41356498]
[1724476775733,6.4488,155.07,154.97,65.12549]
[1724476775902,6.4488,155.07,154.98,0.58814944]
[1724476776235,6.4488,155.07,154.98,26.41272671]
[1724476776394,29.60811929,155.08,154.98,26.41272671]
[1724476776395,29.3107492,155.08,154.99,45.12549]
[1724476776590,7.2885492,155.08,155.0,0.46238232]
[1724476776898,7.2885492,155.08,154.99,45.12549]
[1724476777419,8.90099802,155.08,154.99,45.12549]
[1724476777596,8.06124882,155.07,154.99,45.12549]
[1724476777795,6.4492,155.06,154.99,45.0]
[1724476778001,6.4492,155.06,154.98,45.12549]
[1724476778207,6.4496,155.05,154.97,20.0]
[1724476779724,6.4496,155.05,154.98,45.0]
[1724476781527,8.06262551,155.04,154.98,45.0]
[1724476782317,1.61272551,155.04,154.98,45.0]
[1724476782537,0.8403492,155.08,154.99,0.25098]
[1724476782538,1.61280658,155.07,154.99,0.25098]
[1724476783035,1.61280658,155.07,154.99,0.12549]
[1724476783208,1.61280658,155.07,154.98,70.82457727]
[1724476783209,6.4495,155.05,154.98,70.82457727]
[1724476783414,6.4495,155.05,154.98,45.0]
[1724476783722,6.4495,155.05,154.97,45.0]
[1724476783925,1.6126637,155.04,154.97,45.0]
[1724476784117,8.0625637,155.04,154.97,45.0]
[1724476784317,8.0625637,155.04,154.94,25.82457727]
[1724476784544,8.0625637,155.04,154.95,20.0]
[1724476784740,22.8889637,155.04,154.93,6.2946]
[1724476785034,45.95006727,155.03,154.92,15.5831]
[1724476785217,1.61328214,155.02,154.92,15.5831]
[1724476785423,6.4517,155.0,154.92,15.5831]
[1724476786251,6.4512,155.01,154.92,41.40767727]
[1724476787039,6.4512,155.01,154.93,45.25098]
[1724476787337,1.61300755,155.0,154.92,41.40767727]
[1724476787647,6.4478,155.09,154.99,25.82457727]
[1724476787849,21.59105958,155.11,155.0,0.46184412]
[1724476788141,6.4475,155.1,155.0,0.46184412]
[1724476788342,6.4475,155.1,155.0,20.46184412]
[1724476788718,6.4475,155.1,155.01,45.12549]